Workbook

Sheet Samlet
B1: 2000 | D1: 2001 | F1: 2002 | H1: 2003 | J1: 2004 | L1: 2005 | N1: 2006 | P1: 2007 | R1: 2008 | T1: 2008/2009 | V1: 2009 | X1: 2010 | AB1: 2011 | AF1: 2012 | AJ1: 2013 | AN1: 2014
R2: Forår | V2: Efterår | X2: Forår | Z2: Efterår | AB2: Forår | AD2: Efterår | AF2: Forår | AH2: Efterår | AJ2: Forår | AL2: Efterår | AN2: Forår | AP2: Efterår | AR2: KAMPE I ALT | AS2: MÅL I ALT | AT2: Mål pr kamp
B3: Kampe | C3: Mål | D3: Kampe | E3: Mål | F3: Kampe | G3: Mål | H3: Kampe | I3: Mål | J3: Kampe | K3: Mål | L3: Kampe | M3: Mål | N3: Kampe | O3: Mål | P3: Kampe | Q3: Mål | R3: Kampe | S3: Mål | T3: Kampe | U3: Mål | V3: Kampe | W3: Mål | X3: Kampe | Y3: Mål | Z3: Kampe | AA3: Mål | AB3: Kampe | AC3: Mål | AD3: Kampe | AE3: Mål | AF3: Kampe | AG3: Mål | AH3: Kampe | AI3: Mål | AJ3: Kampe | AK3: Mål | AL3: Kampe | AM3: Mål | AN3: Kampe | AO3: Mål | AP3: Kampe | AQ3: Mål
A4: Marco Witt | B4: 20 | C4: 1 | D4: 22 | E4: 2 | F4: 21 | G4: 7 | H4: 24 | I4: 7 | J4: 23 | K4: 1 | L4: 17 | M4: 6 | N4: 22 | O4: 5 | P4: 24 | Q4: 2 | R4: 14 | S4: 5 | T4: 21 | U4: 1 | V4: 15 | W4: 1 | X4: 14 | Y4: 1 | Z4: 14 | AA4: 1 | AB4: 14 | AD4: 14 | AF4: 7 | AH4: 9 | AI4: 2 | AJ4: 13 | AK4: 2 | AL4: 14 | AM4: 4 | AN4: 14 | AP4: 14 | AQ4: 3 | AR4: =X4+V4+T4+R4+P4+N4+L4+J4+H4+F4+D4+B4+Z4+AB4+AD4+AF4+AH4+AJ4+AL4+AN4+AP4 -> 350 | AS4: =SUM(Y4+W4+U4+S4+Q4+O4+M4+K4+I4+G4+E4+C4+AA4+AC4+AE4+AG4+AI4+AK4+AM4+AO4+AQ4) -> 51 | AT4: =+AS4/AR4 -> 0.1457142857
A5: Jes Rødhus | D5: 10 | E5: 2 | F5: 21 | G5: 7 | H5: 24 | I5: 10 | J5: 18 | K5: 4 | L5: 27 | M5: 37 | N5: 26 | O5: 17 | R5: 13 | S5: 11 | T5: 23 | U5: 11 | V5: 14 | W5: 4 | X5: 14 | Y5: 1 | Z5: 14 | AA5: 7 | AB5: 14 | AC5: 5 | AD5: 14 | AE5: 8 | AF5: 15 | AG5: 4 | AH5: 5 | AI5: 4 | AJ5: 13 | AK5: 10 | AL5: 13 | AM5: 4 | AN5: 17 | AO5: 4 | AP5: 14 | AQ5: 7 | AR5: =SUM(V5+T5+R5+P5+N5+L5+J5+H5+F5+D5+B5+X5+Z5+AB5+AD5+AF5+AH5+AJ5+AL5+AN5+AP5) -> 309 | AS5: =SUM(W5+U5+S5+Q5+O5+M5+K5+I5+G5+E5+C5+Y5+AA5+AC5+AE5+AG5+AI5+AK5+AM5+AO5+AQ5) -> 157 | AT5: =+AS5/AR5 -> 0.5080906149
A6: Rasmus Horndal | B6: 4 | D6: 19 | E6: 5 | F6: 21 | H6: 22 | I6: 5 | J6: 19 | L6: 25 | M6: 8 | N6: 27 | O6: 7 | P6: 23 | Q6: 4 | R6: 11 | S6: 1 | T6: 7 | X6: 9 | Y6: 2 | Z6: 12 | AB6: 10 | AC6: 1 | AD6: 9 | AF6: 15 | AG6: 1 | AH6: 6 | AJ6: 12 | AK6: 1 | AN6: 3 | AO6: 1 | AP6: 9 | AR6: =SUM(X6+V6+T6+R6+P6+N6+L6+J6+H6+F6+D6+B6+Z6+AB6+AD6+AF6+AH6+AJ6+AL6+AN6+AP6) -> 263 | AS6: =SUM(Y6+W6+U6+S6+Q6+O6+M6+K6+I6+G6+E6+C6+AA6+AC6+AE6+AG6+AI6+AK6+AM6+AO6+AQ6) -> 36 | AT6: =+AS6/AR6 -> 0.1368821293
A7: Philip Schnoor | J7: 21 | K7: 2 | L7: 25 | M7: 7 | N7: 22 | O7: 2 | P7: 23 | Q7: 20 | R7: 6 | S7: 5 | T7: 18 | U7: 7 | V7: 14 | W7: 2 | X7: 12 | Y7: 2 | Z7: 14 | AA7: 10 | AB7: 14 | AC7: 2 | AD7: 14 | AE7: 2 | AF7: 13 | AG7: 2 | AH7: 11 | AI7: 2 | AJ7: 11 | AL7: 12 | AN7: 16 | AO7: 2 | AP7: 10 | AQ7: 1 | AR7: =SUM(X7+V7+T7+R7+P7+N7+L7+J7+H7+Z7+AB7+AD7+AF7+AH7+AJ7+AL7+AN7+AP7) -> 256 | AS7: =SUM(Y7+W7+U7+S7+Q7+O7+M7+K7+AA7+AC7+AE7+AG7+AI7+AK7+AM7+AO7+AQ7) -> 68 | AT7: =+AS7/AR7 -> 0.265625
A8: Carsten Juul | B8: 18 | C8: 4 | D8: 22 | E8: 7 | F8: 22 | G8: 4 | H8: 22 | J8: 23 | K8: 3 | L8: 24 | M8: 5 | N8: 27 | O8: 1 | P8: 24 | R8: 13 | T8: 22 | U8: 2 | V8: 12 | X8: 2 | AR8: =B8+D8+F8+H8+J8+L8+N8+P8+R8+T8+V8+X8+Z8+AB8+AD8+AF8+AH8+AJ8+AL8+AN8+AP8 -> 231 | AS8: =C8+E8+G8+I8+K8+M8+O8+Q8+S8+U8+W8+Y8+AA8 -> 26 | AT8: =AS8/AR8 -> 0.1125541126
A9: Johnny Stefansen | L9: 21 | N9: 26 | P9: 14 | R9: 14 | T9: 24 | V9: 14 | X9: 13 | Z9: 12 | AB9: 14 | AD9: 13 | AF9: 13 | AR9: =SUM(X9+V9+T9+R9+P9+N9+L9+Z9+AB9+AD9+AF9+AH9+AJ9+AL9+AN9+AP9) -> 178 | AS9: =SUM(AA9+AC9+AE9+AG9+AI9+AK9+AM9+AO9+AQ9) -> 0 | AT9: =+AS9/AR9 -> 0
A10: Jørgen Johansen | B10: 22 | C10: 9 | D10: 23 | E10: 9 | F10: 21 | G10: 14 | H10: 21 | I10: 13 | J10: 19 | K10: 1 | L10: 21 | M10: 13 | N10: 25 | O10: 16 | P10: 11 | Q10: 2 | R10: 7 | AR10: =B10+D10+F10+H10+J10+L10+N10+P10+R10+T10 -> 170 | AS10: =C10+E10+G10+I10+K10+M10+O10+Q10+S10 -> 77 | AT10: =AS10/AR10 -> 0.4529411765
A11: Morten Thøgersen | J11: 11 | K11: 2 | L11: 13 | M11: 18 | N11: 26 | O11: 12 | P11: 21 | Q11: 16 | R11: 14 | S11: 10 | T11: 25 | U11: 19 | V11: 14 | W11: 15 | AL11: 12 | AM11: 20 | AN11: 6 | AP11: 13 | AQ11: 12 | AR11: =SUM(R11+P11+N11+L11+J11+X11+V11+T11+Z11+AB11+AD11+AF11+AH11+AJ11+AL11+AN11+AP11) -> 155 | AS11: =SUM(S11+Q11+O11+M11+K11+Y11+W11+U11+AA11+AC11+AE11+AG11+AI11+AK11+AM11+AO11+AQ11) -> 124 | AT11: =AS11/AR11 -> 0.8
A12: Casper Super Nielsen | V12: 11 | W12: 1 | X12: 13 | Y12: 1 | Z12: 11 | AA12: 2 | AB12: 14 | AC12: 3 | AD12: 14 | AE12: 7 | AF12: 11 | AG12: 3 | AH12: 11 | AI12: 1 | AJ12: 13 | AK12: 7 | AL12: 10 | AM12: 1 | AN12: 11 | AO12: 3 | AP12: 14 | AQ12: 2 | AR12: =SUM(X12+V12+Z12+AB12+AD12+AF12+AH12+AJ12+AL12+AN12+AP12) -> 133 | AS12: =SUM(Y12+W12+AA12+AC12+AE12+AG12+AI12+AK12+AM12+AO12+AQ12) -> 31 | AT12: =+AS12/AR12 -> 0.2330827068
A13: Bo Eberhardt | B13: 22 | C13: 2 | D13: 21 | E13: 1 | F13: 21 | G13: 1 | H13: 16 | J13: 16 | L13: 22 | M13: 1 | N13: 4 | P13: 2 | R13: 1 | AR13: =B13+D13+F13+H13+J13+L13+N13+P13+R13+T13+V13 -> 125 | AS13: =C13+E13+G13+I13+K13+M13+O13+Q13+S13 -> 5 | AT13: =AS13/AR13 -> 0.04
A14: Troels Bay | P14: 17 | R14: 7 | T14: 20 | U14: 0 | V14: 8 | X14: 5 | Z14: 12 | AB14: 10 | AC14: 1 | AD14: 11 | AF14: 10 | AH14: 8 | AJ14: 4 | AN14: 5 | AP14: 5 | AR14: =SUM(X14+V14+T14+R14+P14+Z14+AB14+AD14+AF14+AH14+AJ14+AL14+AN14+AP14) -> 122 | AS14: =SUM(AA14+AC14+AE14+AG14+AI14+AK14+AM14+AO14+AQ14) -> 1 | AT14: =+AS14/AR14 -> 0.008196721311
A15: Niels Hammer | T15: 1 | V15: 13 | X15: 12 | Y15: 2 | Z15: 14 | AA15: 5 | AB15: 14 | AC15: 6 | AD15: 9 | AF15: 14 | AG15: 4 | AH15: 2 | AJ15: 13 | AK15: 1 | AL15: 12 | AM15: 2 | AN15: 12 | AO15: 3 | AR15: =SUM(X15+V15+T15+Z15+AB15+AD15+AF15+AH15+AJ15+AL15+AN15+AP15) -> 116 | AS15: =SUM(Y15+W15+U15+AA15+AC15+AE15+AG15+AI15+AK15+AM15+AO15+AQ15) -> 23 | AT15: =+AS15/AR15 -> 0.1982758621
A16: Morten Mariager | T16: 5 | V16: 9 | X16: 14 | Y16: 1 | Z16: 14 | AB16: 7 | AC16: 1 | AD16: 14 | AJ16: 13 | AL16: 14 | AM16: 1 | AN16: 13 | AP16: 9 | AR16: =SUM(X16+V16+T16+R16+Z16+AB16+AD16+AF16+AH16+AJ16+AL16+AN16+AP16) -> 112 | AS16: =SUM(Y16+W16+U16+AA16+AC16+AE16+AG16+AI16+AK16+AM16+AO16+AQ16) -> 3 | AT16: =+AS16/AR16 -> 0.02678571429
A17: Jan Olesen | T17: 1 | U17: 1 | V17: 3 | X17: 3 | Z17: 14 | AA17: 2 | AB17: 9 | AC17: 1 | AD17: 14 | AE17: 1 | AF17: 14 | AG17: 3 | AH17: 13 | AI17: 1 | AJ17: 4 | AL17: 13 | AM17: 2 | AN17: 10 | AP17: 12 | AQ17: 1 | AR17: =SUM(X17+V17+T17+Z17+AB17+AD17+AF17+AH17+AJ17+AL17+AN17+AP17) -> 110 | AS17: =SUM(Y17+W17+U17+AA17+AC17+AE17+AG17+AI17+AK17+AM17+AO17+AQ17) -> 12 | AT17: =+AS17/AR17 -> 0.1090909091
A18: Nikolaj Nielsen | B18: 22 | C18: 2 | D18: 15 | E18: 1 | F18: 16 | H18: 13 | I18: 1 | J18: 21 | K18: 3 | N18: 4 | P18: 11 | Q18: 1 | AR18: =B18+D18+F18+H18+J18+L18+N18+P18+R18+T18 -> 102 | AS18: =C18+E18+G18+I18+K18+M18+O18+Q18 -> 8 | AT18: =AS18/AR18 -> 0.07843137255
A19: Michael Bille | N19: 26 | O19: 1 | P19: 14 | Q19: 2 | R19: 5 | S19: 1 | T19: 20 | U19: 1 | V19: 11 | W19: 1 | X19: 5 | Z19: 9 | AD19: 2 | AF19: 1 | AR19: =SUM(X19+V19+T19+R19+P19+N19+Z19+AB19+AD19+AF19+AH19+AJ19+AL19+AN19+AP19) -> 93 | AS19: =SUM(Y19+W19+U19+S19+Q19+O19+AA19+AC19+AE19+AG19+AI19+AK19+AM19+AO19+AQ19) -> 6 | AT19: =+AS19/AR19 -> 0.06451612903
A20: Morten Sørensen | H20: 24 | I20: 4 | J20: 13 | K20: 1 | L20: 22 | M20: 4 | N20: 19 | O20: 2 | P20: 2 | AR20: =B20+D20+F20+H20+J20+L20+N20+P20+R20+T20 -> 80 | AS20: =C20+E20+G20+I20+K20+M20+O20+Q20 -> 11 | AT20: =AS20/AR20 -> 0.1375
A21: Rene Mortensen | L21: 4 | N21: 20 | O21: 2 | P21: 17 | Q21: 1 | R21: 10 | S21: 2 | T21: 21 | U21: 1 | V21: 2 | AR21: =B21+D21+F21+H21+J21+L21+N21+P21+R21+T21+V21+X21+Z21+AB21+AD21+AF21+AH21+AJ21+AL21+AN21+AP21 -> 74 | AS21: =C21+E21+G21+I21+K21+M21+O21+Q21+S21+U21+W21+Y21+AA21+AC21+AE21+AG21+AI21+AK21+AM21+AO21+AQ21 -> 6 | AT21: =AS21/AR21 -> 0.08108108108
A22: Tom Sørensen | B22: 23 | C22: 1 | D22: 6 | F22: 21 | H22: 18 | I22: 1 | L22: 6 | AR22: =B22+D22+F22+H22+J22+L22 -> 74 | AS22: =C22+E22+G22+I22+K22+M22 -> 2 | AT22: =AS22/AR22 -> 0.02702702703
A23: Michael Christensen | L23: 13 | M23: 5 | N23: 6 | O23: 1 | P23: 5 | R23: 12 | S23: 4 | T23: 10 | U23: 3 | V23: 10 | W23: 3 | X23: 13 | Y23: 2 | Z23: 2 | AD23: 2 | AR23: =SUM(X23+V23+T23+R23+P23+N23+L23+J23+H23+Z23+AB23+AD23+AF23+AH23+AJ23+AL23+AN23+AP23) -> 73 | AS23: =SUM(Y23+W23+U23+S23+Q23+O23+M23+AA23+AC23+AE23+AG23+AI23+AK23+AM23+AO23+AQ23) -> 18 | AT23: =+AS23/AR23 -> 0.2465753425
A24: Rasmus Dencker | B24: 13 | F24: 8 | G24: 1 | H24: 9 | J24: 6 | K24: 1 | L24: 15 | M24: 1 | N24: 8 | O24: 1 | P24: 13 | X24: 1 | AR24: =B24+D24+F24+H24+J24+L24+N24+P24+R24+T24+V24+X24+Z24+AB24+AD24+AF24+AH24+AJ24+AL24+AN24+AP24 -> 73 | AS24: =C24+E24+G24+I24+K24+M24+O24+Q24+S24+U24+W24+Y24+AA24+AC24+AE24+AG24+AI24+AK24+AM24+AO24+AQ24 -> 4 | AT24: =AS24/AR24 -> 0.05479452055
A25: Thomas Schou | B25: 10 | F25: 7 | H25: 22 | I25: 1 | J25: 4 | L25: 22 | N25: 4 | P25: 4 | AR25: =B25+D25+F25+H25+J25+L25+N25+P25+R25 -> 73 | AS25: =C25+E25+G25+I25+K25+M25+O25+Q25 -> 1 | AT25: =AS25/AR25 -> 0.01369863014
A26: Thomas Simoni | AD26: 2 | AF26: 14 | AG26: 3 | AH26: 11 | AI26: 2 | AJ26: 14 | AN26: 17 | AP26: 14 | AQ26: 1 | AR26: =SUM(Z26+AB26+AD26+AF26+AH26+AJ26+AL26+AN26+AP26) -> 72 | AS26: =SUM(AA26+AC26+AE26+AG26+AI26+AK26+AM26+AO26+AQ26) -> 6 | AT26: =+AS26/AR26 -> 0.08333333333
A27: Kris Alcott | AF27: 16 | AG27: 18 | AH27: 13 | AI27: 5 | AJ27: 13 | AK27: 8 | AL27: 12 | AM27: 7 | AN27: 14 | AO27: 3 | AR27: =SUM(Z27+AB27+AD27+AF27+AH27+AJ27+AL27+AN27+AP27) -> 68 | AS27: =SUM(AA27+AC27+AE27+AG27+AI27+AK27+AM27+AO27+AQ27) -> 41 | AT27: =+AS27/AR27 -> 0.6029411765
A28: Michael Søbygge | J28: 3 | L28: 3 | N28: 1 | AF28: 16 | AG28: 3 | AH28: 10 | AI28: 1 | AJ28: 11 | AL28: 6 | AN28: 8 | AO28: 2 | AP28: 7 | AR28: =SUM(X28+V28+T28+R28+P28+N28+L28+J28+H28+F28+D28+B28+Z28+AB28+AD28+AF28+AH28+AJ28+AL28+AN28+AP28) -> 65 | AS28: =SUM(AA28+AC28+AE28+AG28+AI28+AK28+AM28+AO28+AQ28) -> 6 | AT28: =+AS28/AR28 -> 0.09230769231
A29: Anders Madsen | AD29: 1 | AF29: 1 | AH29: 12 | AJ29: 8 | AL29: 13 | AN29: 14 | AP29: 10 | AR29: =SUM(Z29+AB29+AD29+AF29+AH29+AJ29+AL29+AN29+AP29) -> 59 | AS29: =SUM(AA29+AC29+AE29+AG29+AI29+AK29+AM29+AO29+AQ29) -> 0 | AT29: =+AS29/AR29 -> 0
A30: Peter Redder | B30: 21 | D30: 23 | F30: 2 | J30: 6 | L30: 3 | P30: 1 | AR30: =B30+D30+F30+H30+J30+L30 -> 55 | AS30: =C30+E30 -> 0 | AT30: =AS30/AR30 -> 0
A31: Henrik Andersen | N31: 15 | O31: 1 | P31: 22 | Q31: 1 | T31: 14 | U31: 1 | V31: 3 | AR31: =B31+D31+F31+H31+J31+L31+N31+P31+R31+T31+V31+X31+Z31+AB31+AD31+AF31+AH31+AJ31+AL31+AN31+AP31 -> 54 | AS31: =C31+E31+G31+I31+K31+M31+O31+Q31+S31+U31+W31+Y31+AA31 -> 3 | AT31: 0.05555555556
A32: Azhe Dorsen | R32: 10 | S32: 5 | T32: 19 | U32: 9 | V32: 9 | W32: 1 | X32: 13 | Y32: 9 | AR32: =B32+D32+F32+H32+J32+L32+N32+P32+R32+T32+V32+X32+Z32+AB32+AD32+AF32+AH32+AJ32+AL32+AN32+AP32 -> 51 | AS32: =C32+E32+G32+I32+K32+M32+O32+Q32+S32+U32+W32+Y32+AA32+AC32+AE32+AG32+AI32+AK32+AM32+AO32+AQ32 -> 24 | AT32: 0.4705882353
A33: Mads Andreassen | N33: 6 | O33: 1 | P33: 3 | R33: 10 | S33: 1 | T33: 24 | U33: 0 | V33: 8 | AR33: =B33+D33+F33+H33+J33+L33+N33+P33+R33+T33+V33 -> 51 | AS33: =C33+E33+G33+I33+K33+M33+O33+Q33+S33+U33+W33 -> 2 | AT33: 0.03921568627
A34: Torben Andersen | B34: 2 | F34: 20 | H34: 24 | J34: 5 | AR34: =B34+D34+F34+H34+J34+L34 -> 51 | AS34: =C34+E34 -> 0 | AT34: 0
A35: Jesper Holmberg | L35: 6 | N35: 19 | O35: 2 | P35: 22 | AR35: =B35+D35+F35+H35+J35+L35+N35+P35+R35 -> 47 | AS35: =M35+O35+Q35+S35 -> 2 | AT35: 0.04255319149
A36: Jimmi L. Nielsen | AD36: 11 | AL36: 13 | AM36: 3 | AN36: 10 | AP36: 12 | AQ36: 1 | AR36: =SUM(Z36+AB36+AD36+AF36+AH36+AJ36+AL36+AN36+AP36) -> 46 | AS36: =SUM(AA36+AC36+AE36+AG36+AI36+AK36+AM36+AO36+AQ36) -> 4 | AT36: =+AS36/AR36 -> 0.08695652174
A37: Dak Tamidi | Z37: 5 | AB37: 7 | AD37: 3 | AF37: 13 | AH37: 12 | AJ37: 5 | AR37: =SUM(Z37+AB37+AD37+AF37+AH37+AJ37+AL37+AN37+AP37) -> 45 | AS37: =SUM(AA37+AC37+AE37+AG37+AI37+AK37+AM37+AO37+AQ37) -> 0 | AT37: =+AS37/AR37 -> 0
A38: Christoffer Vorre | R38: 4 | T38: 22 | U38: 9 | V38: 11 | W38: 1 | X38: 4 | Y38: 1 | AB38: 3 | AR38: =SUM(X38+V38+T38+R38+P38+N38+Z38+AB38+AD38+AF38+AH38+AJ38+AL38+AN38+AP38) -> 44 | AS38: =SUM(Y38+W38+U38+S38+AA38+AC38+AE38+AG38+AI38+AK38+AM38+AO38+AQ38) -> 11 | AT38: =+AS38/AR38 -> 0.25
A39: John Martin Sørensen | AJ39: 13 | AK39: 3 | AL39: 7 | AN39: 11 | AO39: 9 | AP39: 11 | AQ39: 7 | AR39: =SUM(Z39+AB39+AD39+AF39+AH39+AJ39+AL39+AN39+AP39) -> 42 | AS39: =SUM(AA39+AC39+AE39+AG39+AI39+AK39+AM39+AO39+AQ39) -> 19 | AT39: =+AS39/AR39 -> 0.4523809524
A40: Allan Egested | D40: 5 | F40: 20 | G40: 2 | H40: 15 | I40: 2 | AR40: =B40+D40+F40+H40+J40 -> 40 | AS40: =C40+E40+G40+I40+K40 -> 4 | AT40: =AS40/AR40 -> 0.1
A41: Mikkel Pedersen | AH41: 13 | AI41: 2 | AJ41: 13 | AL41: 13 | AR41: =SUM(Z41+AB41+AD41+AF41+AH41+AJ41+AL41+AN41+AP41) -> 39 | AS41: =SUM(AA41+AC41+AE41+AG41+AI41+AK41+AM41+AO41+AQ41) -> 2 | AT41: =+AS41/AR41 -> 0.05128205128
A42: Lasse Nielsen | AF42: 6 | AH42: 11 | AJ42: 12 | AL42: 5 | AN42: 3 | AR42: =SUM(Z42+AB42+AD42+AF42+AH42+AJ42+AL42+AN42+AP42) -> 37 | AS42: =SUM(AA42+AC42+AE42+AG42+AI42+AK42+AM42+AO42+AQ42) -> 0 | AT42: =+AS42/AR42 -> 0
A43: Thomas Nielsen | B43: 10 | C43: 2 | D43: 7 | F43: 9 | G43: 1 | H43: 10 | AR43: =B43+D43+F43+H43+J43 -> 36 | AS43: =C43+E43+G43+I43 -> 3 | AT43: =AS43/AR43 -> 0.08333333333
A44: Jonas Skyum | AB44: 10 | AD44: 9 | AF44: 10 | AG44: 1 | AH44: 5 | AI44: 3 | AR44: =SUM(Z44+AB44+AD44+AF44+AH44+AJ44+AL44+AN44+AP44) -> 34 | AS44: =SUM(AA44+AC44+AE44+AE44+AG44+AI44+AK44+AM44+AO44+AQ44) -> 4 | AT44: =+AS44/AR44 -> 0.1176470588
A45: Sidni Najjar | T45: 1 | U45: 1 | V45: 7 | W45: 2 | Z45: 11 | AB45: 13 | AD45: 2 | AR45: =SUM(X45+V45+T45+Z45+AB45+AD45+AF45+AH45+AJ45+AL45+AN45+AP45) -> 34 | AS45: =SUM(Y45+W45+U45+AA45+AC45+AE45+AG45+AI45+AK45+AM45+AO45+AQ45) -> 3 | AT45: =+AS45/AR45 -> 0.08823529412
A46: Lars Lanng | D46: 23 | F46: 11 | AR46: =B46+D46+F46 -> 34 | AS46: =E46+G46 -> 0 | AT46: =AS46/AR46 -> 0
A47: Michael Thomsen | J47: 11 | K47: 4 | N47: 4 | O47: 5 | P47: 13 | Q47: 3 | T47: 2 | V47: 1 | Z47: 1 | AR47: =SUM(X47+V47+T47+R47+P47+N47+L47+J47+H47+F47+Z47+AB47+AD47+AF47+AH47+AJ47+AL47+AN47+AP47) -> 32 | AS47: =SUM(Y47+W47+U47+S47+Q47+O47+M47+K47+I47+G47+AA47+AC47+AE47+AG47+AI47+AK47+AM47+AO47+AQ47) -> 12 | AT47: =+AS47/AR47 -> 0.375
A48: Vagn Larsen | B48: 17 | C48: 2 | D48: 14 | F48: 1 | AR48: =B48+D48+F48+H48 -> 32 | AS48: =C48+E48+G48 -> 2 | AT48: =AS48/AR48 -> 0.0625
A49: Thomas Viborg | B49: 11 | D49: 19 | E49: 11 | H49: 1 | AR49: =B49+D49+F49+H49 -> 31 | AS49: =C49+E49+G49+I49 -> 11 | AT49: =AS49/AR49 -> 0.3548387097
A50: Kristian Øland | D50: 15 | F50: 15 | G50: 3 | AR50: =D50+F50 -> 30 | AS50: =E50+G50 -> 3 | AT50: =AS50/AR50 -> 0.1
A51: Morten Unnerup | AB51: 10 | AD51: 11 | AH51: 7 | AJ51: 2 | AR51: =SUM(Z51+AB51+AD51+AF51+AH51+AJ51+AL51+AN51+AP51) -> 30 | AS51: =SUM(AA51+AC51+AE51+AG51+AI51+AK51+AM51+AO51+AQ51) -> 0 | AT51: =+AS51/AR51 -> 0
A52: Søren Aaen | X52: 11 | Z52: 9 | AA52: 6 | AB52: 9 | AC52: 1 | AR52: =SUM(X52+Z52+AB52+AD52+AF52+AH52+AJ52+AL52+AN52+AP52) -> 29 | AS52: =SUM(AA52+AC52+AE52+AG52+AI52+AK52+AM52+AO52+AQ52) -> 7 | AT52: =+AS52/AR52 -> 0.2413793103
A53: Søren Jonstrup | X53: 10 | Y53: 2 | Z53: 9 | AA53: 2 | AB53: 10 | AC53: 1 | AR53: =SUM(X53+V53+Z53+AB53+AD53+AF53+AH53+AJ53+AL53+AN53+AP53) -> 29 | AS53: =SUM(Y53+AA53+AC53+AE53+AG53+AI53+AK53+AM53+AO53+AQ53) -> 5 | AT53: =+AS53/AR53 -> 0.1724137931
A54: Bo Storm Madsen | H54: 17 | J54: 11 | AR54: =H54+J54 -> 28 | AS54: =I54+K54 -> 0 | AT54: =AS54/AR54 -> 0
A55: Jeppe Nielsen | J55: 16 | L55: 9 | N55: 2 | AR55: =B55+D55+F55+H55+J55+L55+N55 -> 27 | AS55: =K55+M55+O55 -> 0 | AT55: =AS55/AR55 -> 0
A56: Dion Nøhr | F56: 4 | H56: 2 | I56: 1 | J56: 16 | K56: 4 | AF56: 3 | AR56: =SUM(X56+V56+T56+R56+P56+N56+L56+J56+H56+F56+D56+B56+Z56+AB56+AD56+AF56+AH56+AJ56+AL56+AN56+AP56) -> 25 | AS56: =SUM(Y56+W56+U56+S56+Q56+O56+M56+K56+I56+G56+E56+C56+AA56+AC56+AE56+AG56+AI56+AK56+AM56+AO56+AQ56) -> 5 | AT56: =+AS56/AR56 -> 0.2
A57: Tim Christensen | H57: 10 | J57: 6 | L57: 8 | AR57: =B57+D57+F57+H57+J57+L57+N57+P57 -> 24 | AS57: =I57+K57+M57+O57 -> 0 | AT57: =AS57/AR57 -> 0
A58: Jonas Kristensen | AL58: 11 | AM58: 3 | AN58: 12 | AO58: 1 | AR58: =SUM(Z58+AB58+AD58+AF58+AH58+AJ58+AL58+AN58+AP58) -> 23 | AS58: =SUM(AA58+AC58+AE58+AG58+AI58+AK58+AM58+AO58+AQ58) -> 4 | AT58: =+AS58/AR58 -> 0.1739130435
A59: Thomas Kongsted | J59: 10 | K59: 1 | L59: 12 | M59: 3 | AR59: =B59+D59+F59+H59+J59+L59+N59 -> 22 | AS59: =K59+M59 -> 4 | AT59: =AS59/AR59 -> 0.1818181818
A60: Kim Thylstrup | P60: 10 | R60: 11 | T60: 1 | AR60: =P60+N60+L60+R60+T60+V60 -> 22 | AS60: =O60+Q60+S60+U60+W60 -> 0 | AT60: 0
A61: Per Jungersen | R61: 13 | T61: 4 | X61: 4 | AR61: =B61+D61+F61+H61+J61+L61+N61+P61+R61+T61+V61+X61+Z61+AB61 -> 21 | AS61: =Q61+S61+U61+W61+Y61 -> 0 | AT61: 0
A62: Søren Lynge | R62: 9 | S62: 1 | T62: 10 | U62: 1 | AR62: =B62+D62+F62+H62+J62+L62+N62+P62+R62+T62+V62 -> 19 | AS62: =S62+U62 -> 2 | AT62: 0.1052631579
A63: Kenny Jensen | B63: 18 | C63: 6 | AR63: =B63+D63 -> 18 | AS63: =C63+E63 -> 6 | AT63: 0.3333333333
A64: Michael Vrist | B64: 11 | C64: 1 | D64: 4 | E64: 2 | F64: 3 | G64: 2 | AR64: =B64+D64+F64+H64 -> 18 | AS64: =C64+E64+G64+I64 -> 5 | AT64: 0.2777777778
A65: Isak Nielsen | F65: 14 | G65: 2 | J65: 4 | K65: 1 | AR65: =B65+D65+F65+H65+J65+L65 -> 18 | AS65: =G65+I65+K65 -> 3 | AT65: 0.1666666667
A66: Søren Nør | D66: 14 | E66: 5 | F66: 1 | L66: 2 | AR66: =B66+D66+F66+H66+J66+L66 -> 17 | AS66: =C66+E66+G66+I66+K66+M66 -> 5 | AT66: 0.2941176471
A67: Anders Olesen | B67: 12 | C67: 2 | F67: 4 | H67: 1 | AR67: =B67+D67+F67+H67+J67 -> 17 | AS67: =C67+E67+G67+I67 -> 2 | AT67: 0.1176470588
A68: Kris Jacobsen | J68: 8 | L68: 8 | M68: 1 | AR68: =J68+L68+N68 -> 16 | AS68: =K68+M68 -> 1 | AT68: 0.0625
A69: Steffen Nielsen | J69: 5 | L69: 11 | M69: 1 | AR69: =J69+L69 -> 16 | AS69: =K69+M69 -> 1 | AT69: 0.0625
A70: Henrik Kragh | B70: 16 | C70: 1 | AR70: =B70+D70 -> 16 | AS70: =C70+E70 -> 1 | AT70: 0.0625
A71: Deniz Pasic | AN71: 8 | AO71: 2 | AP71: 7 | AQ71: 2 | AR71: =SUM(AN71+AP71) -> 15 | AS71: =SUM(AO71+AQ71) -> 4 | AT71: =+AS71/AR71 -> 0.2666666667
A72: Thomas Leer | AH72: 7 | AI72: 1 | AJ72: 1 | AL72: 2 | AN72: 2 | AP72: 3 | AR72: =SUM(Z72+AB72+AD72+AF72+AH72+AJ72+AL72+AN72+AP72) -> 15 | AS72: =SUM(AA72+AC72+AE72+AG72+AI72+AK72+AM72+AO72+AQ72) -> 1 | AT72: =+AS72/AR72 -> 0.06666666667
A73: Anders Frøstrup | AF73: 9 | AG73: 1 | AH73: 5 | AR73: =SUM(Z73+AB73+AD73+AF73+AH73+AJ73+AL73+AN73+AP73) -> 14 | AS73: =SUM(AA73+AC73+AE73+AG73+AI73+AK73+AM73+AO73+AQ73) -> 1 | AT73: =+AS73/AR73 -> 0.07142857143
A74: Christian Møller | T74: 5 | V74: 8 | W74: 3 | AR74: =T74+V74 -> 13 | AS74: =U74+W74 -> 3 | AT74: =AS74/AR74 -> 0.2307692308
A75: Casper Zaar | Z75: 1 | AD75: 10 | AF75: 2 | AR75: =SUM(Z75+AB75+AD75+AF75+AH75+AJ75+AL75+AN75+AP75) -> 13 | AS75: =SUM(AA75+AC75+AE75+AG75+AI75+AK75+AM75+AO75+AQ75) -> 0 | AT75: =+AS75/AR75 -> 0
A76: Mathias Carlsen | AL76: 9 | AN76: 4 | AR76: =SUM(Z76+AB76+AD76+AF76+AH76+AJ76+AL76+AN76+AP76) -> 13 | AS76: =SUM(AA76+AC76+AE76+AG76+AI76+AK76+AM76+AO76+AQ76) -> 0 | AT76: =+AS76/AR76 -> 0
A77: Per D. Larsen | B77: 12 | AR77: =B77+D77 -> 12 | AS77: =C77+E77 -> 0 | AT77: =AS77/AR77 -> 0
A78: Kasper Tomra | AB78: 6 | AC78: 1 | AD78: 4 | AE78: 1 | AJ78: 1 | AR78: =SUM(Z78+AB78+AD78+AF78+AH78+AJ78+AL78+AN78+AP78) -> 11 | AS78: =SUM(AA78+AC78+AE78+AG78+AI78+AK78+AM78+AO78+AQ78) -> 2 | AT78: =+AS78/AR78 -> 0.1818181818
A79: Jesper Jørgensen | AN79: 10 | AO79: 1 | AP79: 1 | AR79: =SUM(AN79+AP79) -> 11 | AS79: =SUM(AO79+AQ79) -> 1 | AT79: =+AS79/AR79 -> 0.09090909091
A80: Claus Egested | D80: 10 | E80: 2 | AR80: =B80+D80 -> 10 | AS80: =C80+E80 -> 2 | AT80: =AS80/AR80 -> 0.2
A81: Rene Tengstedt | Z81: 9 | AA81: 1 | AB81: 1 | AR81: =SUM(Z81+AB81+AD81+AF81+AH81+AJ81+AL81+AN81+AP81) -> 10 | AS81: =SUM(AA81+AC81+AE81+AG81+AI81+AK81+AM81+AO81+AQ81) -> 1 | AT81: =+AS81/AR81 -> 0.1
A82: Daniel Svendsen | T82: 1 | V82: 1 | X82: 1 | Z82: 2 | AB82: 1 | AF82: 1 | AH82: 2 | AJ82: 1 | AR82: =SUM(T82+R82+X82+V82+Z82+AB82+AD82+AF82+AH82+AJ82+AL82+AN82+AP82) -> 10 | AS82: =SUM(AA82+AC82+AE82+AG82+AI82+AK82+AM82+AO82+AQ82) -> 0 | AT82: =+AS82/AR82 -> 0
A83: Nikolaj Hedal | H83: 9 | L83: 1 | AR83: =H83+J83+L83 -> 10 | AS83: =I83+K83+M83 -> 0 | AT83: =AS83/AR83 -> 0
A84: Thomas Johansen | H84: 9 | I84: 1 | AR84: =H84 -> 9 | AS84: =I84 -> 1 | AT84: =AS84/AR84 -> 0.1111111111
A85: Søren Spaun | D85: 9 | E85: 1 | AR85: =B85+D85+F85 -> 9 | AS85: =C85+E85 -> 1 | AT85: =AS85/AR85 -> 0.1111111111
A86: Per Mørk | B86: 1 | D86: 8 | E86: 1 | AR86: =B86+D86 -> 9 | AS86: =E86 -> 1 | AT86: =AS86/AR86 -> 0.1111111111
A87: Simon Kyvsgaard | AH87: 9 | AR87: =SUM(Z87+AB87+AD87+AF87+AH87+AJ87+AL87+AN87+AP87) -> 9 | AS87: =SUM(AA87+AC87+AE87+AG87+AI87+AK87+AM87+AO87+AQ87) -> 0 | AT87: =+AS87/AR87 -> 0
A88: Chris Kristensen | J88: 9 | AR88: =J88+L88 -> 9 | AS88: =K88+M88 -> 0 | AT88: =AS88/AR88 -> 0
A89: Jhelvan Beshtwan | AP89: 8 | AQ89: 3 | AR89: =SUM(AN89+AP89) -> 8 | AS89: =SUM(AO89+AQ89) -> 3 | AT89: =+AS89/AR89 -> 0.375
A90: Chris Andersen | AD90: 2 | AF90: 4 | AH90: 2 | AR90: =SUM(Z90+AB90+AD90+AF90+AH90+AJ90+AL90+AN90+AP90) -> 8 | AS90: =SUM(AA90+AC90+AE90+AG90+AI90+AK90+AM90+AO90+AQ90) -> 0 | AT90: =+AS90/AR90 -> 0
A91: Mads Sterup | AH91: 5 | AJ91: 1 | AN91: 1 | AR91: =SUM(Z91+AB91+AD91+AF91+AH91+AJ91+AL91+AN91+AP91) -> 7 | AS91: =SUM(AA91+AC91+AE91+AG91+AI91+AK91+AM91+AO91+AQ91) -> 0 | AT91: =+AS91/AR91 -> 0
A92: Dennis Saabye | B92: 7 | AR92: =B92+D92 -> 7 | AS92: =C92 -> 0 | AT92: =AS92/AR92 -> 0
A93: Dennis Bøgh | P93: 7 | AR93: =SUM(P93+R93) -> 7 | AS93: =SUM(Q93+S93) -> 0 | AT93: =AS93/AR93 -> 0
A94: Mikkel Christensen | AP94: 6 | AQ94: 2 | AR94: =SUM(AN94+AP94) -> 6 | AS94: =SUM(AO94+AQ94) -> 2 | AT94: =+AS94/AR94 -> 0.3333333333
A95: Jacob Werner | T95: 6 | U95: 1 | AR95: =R95+T95 -> 6 | AS95: =S95+U95 -> 1 | AT95: =AS95/AR95 -> 0.1666666667
A96: Casper Simonsen | F96: 6 | AR96: =F96 -> 6 | AS96: =G96 -> 0 | AT96: =AS96/AR96 -> 0
A97: Emil Haucke | AN97: 5 | AO97: 1 | AR97: =SUM(AN97+AP97) -> 5 | AS97: =SUM(AO97+AQ97) -> 1 | AT97: =+AS97/AR97 -> 0.2
A98: Jacob Krog | L98: 5 | M98: 1 | AR98: =L98+N98 -> 5 | AS98: =M98+O98 -> 1 | AT98: =AS98/AR98 -> 0.2
A99: Casper Stefansen | X99: 3 | Z99: 2 | AR99: =SUM(X99+Z99+AB99+AD99+AF99+AH99+AJ99+AL99+AN99+AP99) -> 5 | AS99: =SUM(AA99+AC99+AE99+AG99+AI99+AK99+AM99+AO99+AQ99) -> 0 | AT99: =+AS99/AR99 -> 0
A100: Thomas "Ny" Nielsen | B100: 2 | R100: 3 | AR100: =B100+D100+F100+H100+J100+L100+N100+P100+R100 -> 5 | AS100: =C100+S100 -> 0 | AT100: =AS100/AR100 -> 0
A101: Max Lund | H101: 5 | AR101: =H101 -> 5 | AS101: =I101 -> 0 | AT101: =AS101/AR101 -> 0
A102: Lasse Barth | AP102: 4 | AQ102: 1 | AR102: =SUM(AN102+AP102) -> 4 | AS102: =SUM(AO102+AQ102) -> 1 | AT102: =+AS102/AR102 -> 0.25
A103: Emil Strauss | AL103: 1 | AN103: 3 | AR103: =SUM(Z103+AB103+AD103+AF103+AH103+AJ103+AL103+AN103+AP103) -> 4 | AS103: =SUM(AA103+AC103+AE103+AG103+AI103+AK103+AM103+AO103+AQ103) -> 0 | AT103: =+AS103/AR103 -> 0
A104: Henrik Hartmann | B104: 3 | J104: 1 | AR104: =B104+D104+F104+H104+J104 -> 4 | AS104: =C104+E104+G104+I104 -> 0 | AT104: =AS104/AR104 -> 0
A105: Rene Salskov | F105: 4 | AR105: =F105 -> 4 | AS105: =G105 -> 0 | AT105: =AS105/AR105 -> 0
A106: Bo Mikkelsen | B106: 4 | AR106: =B106 -> 4 | AS106: =C106 -> 0 | AT106: =AS106/AR106 -> 0
A107: Tonny Størkersen | AN107: 1 | AP107: 2 | AR107: =SUM(AN107+AP107) -> 3 | AS107: =SUM(AO107+AQ107) -> 0 | AT107: =+AS107/AR107 -> 0
A108: Flemming Lind | J108: 3 | AR108: =J108+L108 -> 3 | AS108: =K108 -> 0 | AT108: =AS108/AR108 -> 0
A109: Lars Emil Thomsen | J109: 3 | AR109: =B109+D109+F109+H109+J109 -> 3 | AS109: =K109 -> 0 | AT109: =AS109/AR109 -> 0
A110: Martin Sørensen | AL110: 1 | AP110: 1 | AQ110: 1 | AR110: =SUM(Z110+AB110+AD110+AF110+AH110+AJ110+AL110+AN110+AP110) -> 2 | AS110: 1 | AT110: =+AS110/AR110 -> 0.5
A111: Carsten Reberholt | AD111: 1 | AF111: 1 | AR111: 2 | AS111: 0 | AT111: =+AS111/AR111 -> 0
A112: Rene Rump | AF112: 2 | AR112: 2 | AS112: 0 | AT112: =+AS112/AR112 -> 0
A113: Lennart Andersen | R113: 2 | AR113: =R113+T113 -> 2 | AS113: =S113+U113 -> 0 | AT113: =AS113/AR113 -> 0
A114: Kenneth Sand | B114: 2 | AR114: =B114 -> 2 | AS114: =C114 -> 0 | AT114: 0
A115: Jan Sørensen | B115: 2 | AR115: =B115 -> 2 | AS115: =C115 -> 0 | AT115: 0
A116: Timmy Dorum | P116: 2 | AR116: =SUM(P116+R116) -> 2 | AS116: =SUM(Q116+S116) -> 0 | AT116: 0
A117: Caspar Hybel | H117: 1 | I117: 1 | AR117: =H117 -> 1 | AS117: =I117 -> 1 | AT117: 1
A118: Christian Andersen | H118: 1 | I118: 1 | AR118: =H118 -> 1 | AS118: =I118 -> 1 | AT118: 1
A119: Jonas Sand | AF119: 1 | AR119: =SUM(Z119+AB119+AD119+AF119+AH119+AJ119+AL119+AN119+AO119+AP119) -> 1 | AS119: =SUM(AA119+AC119+AE119+AG119+AI119+AK119+AM119+AO119+AQ119) -> 0 | AT119: =+AS119/AR119 -> 0
A120: Allan Jespersen | AH120: 1 | AR120: =SUM(Z120+AB120+AD120+AF120+AH120+AJ120+AL120+AN120+AP120) -> 1 | AS120: =SUM(AA120+AC120+AE120+AG120+AI120+AK120+AM120+AO120+AQ120) -> 0 | AT120: =+AS120/AR120 -> 0
A121: Rasmus Tørring | AP121: 1 | AR121: =SUM(AN121+AP121) -> 1 | AS121: =SUM(AO121+AQ121) -> 0 | AT121: =+AS121/AR121 -> 0
A122: Kasper Støttrup | AP122: 1 | AR122: =SUM(AN122+AP122) -> 1 | AS122: =SUM(AO122+AQ122) -> 0 | AT122: =+AS122/AR122 -> 0
A123: Dennis Nielsen | N123: 1 | AR123: =N123+P123 -> 1 | AS123: =O123+Q123 -> 0 | AT123: =AS123/AR123 -> 0
A124: Anders Junker | H124: 1 | AR124: =H124 -> 1 | AS124: =I124 -> 0 | AT124: 0
A125: Leif Kjær | H125: 1 | AR125: =H125 -> 1 | AS125: =I125 -> 0 | AT125: 0
A126: Jesper Rasmussen | D126: 1 | AR126: =D126 -> 1 | AS126: =E126 -> 0 | AT126: 0
A127: Jacob Nielsen | B127: 1 | AR127: =B127 -> 1 | AS127: 0 | AT127: 0
A128: Jesper Madsen | B128: 1 | AR128: 1 | AS128: 0 | AT128: 0
A129: Tommy Bjerre | B129: 1 | AR129: 1 | AS129: 0 | AT129: 0
A130: Bo Christensen | P130: 1 | AR130: =SUM(P130+R130) -> 1 | AS130: =SUM(Q130+S130) -> 0 | AT130: 0
